[Event "Live Chess"]
[Site "Chess.com"]
[Date "2023.05.21"]
[Round "-"]
[White "Duke_of_Bebington"]
[Black "f4nomore"]
[Result "1-0"]
[WhiteElo "1587"]
[BlackElo "1401"]
[TimeControl "300"]
[EndTime "1:14:18 PDT"]
[Termination "Duke_of_Bebington won by resignation"]

1. e4 {[%clk 0:04:58.1]} 1... g6 {[%clk 0:04:59.9]} 2. d4 {[%clk 0:04:56.3]}
2... Bg7 {[%clk 0:04:59.8]} 3. c4 {[%clk 0:04:54.4]} 3... d6 {[%clk 0:04:58.6]}
4. Nc3 {[%clk 0:04:53.2]} 4... Nf6 {[%clk 0:04:56.8]} 5. f4 {[%clk 0:04:50.5]}
5... O-O {[%clk 0:04:55.6]} 6. Nf3 {[%clk 0:04:48.1]} 6... Nbd7 {[%clk
0:04:54.3]} 7. Be2 {[%clk 0:04:45.8]} 7... c5 {[%clk 0:04:53]} 8. d5 {[%clk
0:04:40.5]} 8... Nb6 {[%clk 0:04:47.1]} 9. h3 {[%clk 0:04:32.8]} 9... e6 {[%clk
0:04:46.1]} 10. e5 {[%clk 0:04:23]} 10... dxe5 {[%clk 0:04:43.5]} 11. fxe5
{[%clk 0:04:21.5]} 11... Nh5 {[%clk 0:04:28.3]} 12. Bg5 {[%clk 0:04:13.1]} 12...
f6 {[%clk 0:04:24.6]} 13. exf6 {[%clk 0:04:09.5]} 13... Nxf6 {[%clk 0:04:17.8]}
14. O-O {[%clk 0:04:02.3]} 14... exd5 {[%clk 0:04:14.1]} 15. Nxd5 {[%clk
0:03:59.7]} 15... Nbxd5 {[%clk 0:04:09.2]} 16. cxd5 {[%clk 0:03:57.6]} 16... Qb6
{[%clk 0:04:06.1]} 17. Bc4 {[%clk 0:03:47.7]} 17... Qxb2 {[%clk 0:03:52.6]} 18.
Nd2 {[%clk 0:03:30]} 18... Qd4+ {[%clk 0:03:33.6]} 19. Kh1 {[%clk 0:03:28.2]}
19... Bf5 {[%clk 0:03:22.6]} 20. Rc1 {[%clk 0:03:17.3]} 20... Nxd5 {[%clk
0:03:01.8]} 21. Nf3 {[%clk 0:03:07.2]} 21... Qxd1 {[%clk 0:02:59.4]} 22. Rfxd1
{[%clk 0:03:05.5]} 22... Kh8 {[%clk 0:02:43]} 23. Rxd5 {[%clk 0:03:01.8]} 23...
Be4 {[%clk 0:02:35.4]} 24. Rd7 {[%clk 0:02:52.4]} 24... Bxf3 {[%clk 0:02:29.1]}
25. gxf3 {[%clk 0:02:52.3]} 25... Rxf3 {[%clk 0:02:25.4]} 26. Kg2 {[%clk
0:02:39.4]} 26... Raf8 {[%clk 0:02:21.9]} 27. Rf1 {[%clk 0:02:29.5]} 27... Rxf1
{[%clk 0:02:14.5]} 28. Bxf1 {[%clk 0:02:29.4]} 28... Bd4 {[%clk 0:02:11.6]} 29.
Rd8 {[%clk 0:02:17.7]} 29... Rxd8 {[%clk 0:02:04.5]} 30. Bxd8 {[%clk 0:02:17.6]}
30... b6 {[%clk 0:02:00.8]} 31. Bc7 {[%clk 0:02:05.6]} 31... Kg7 {[%clk
0:01:58.2]} 32. Bb5 {[%clk 0:01:58.8]} 32... Kf6 {[%clk 0:01:50.9]} 33. Bb8
{[%clk 0:01:57.5]} 33... a5 {[%clk 0:01:47]} 34. Bc7 {[%clk 0:01:56.6]} 34... c4
{[%clk 0:01:38.2]} 35. Bxc4 {[%clk 0:01:53.3]} 35... Kf5 {[%clk 0:01:34.3]} 36.
a4 {[%clk 0:01:46.8]} 36... Ke4 {[%clk 0:01:32.3]} 37. Bd8 {[%clk 0:01:37.5]}
37... Bc5 {[%clk 0:01:21]} 38. Bg5 {[%clk 0:01:34.8]} 38... Kf5 {[%clk
0:01:09.3]} 39. h4 {[%clk 0:01:30.8]} 39... h6 {[%clk 0:01:02.7]} 40. Bxh6
{[%clk 0:01:28.6]} 40... Kg4 {[%clk 0:00:59.3]} 41. Bg5 {[%clk 0:01:26.1]} 41...
Bd4 {[%clk 0:00:46.1]} 42. Bb5 {[%clk 0:01:18.5]} 42... Bc5 {[%clk 0:00:41]} 43.
Be8 {[%clk 0:01:15.6]} 43... Kh5 {[%clk 0:00:38.7]} 44. Kh3 {[%clk 0:01:13.7]}
44... Bd4 {[%clk 0:00:36]} 45. Bc6 {[%clk 0:01:11.4]} 1-0

[Event "Live Chess"]
[Site "Chess.com"]
[Date "2023.05.21"]
[Round "-"]
[White "EdenHazard8"]
[Black "Dhaydon19"]
[Result "0-1"]
[WhiteElo "1936"]
[BlackElo "2690"]
[TimeControl "300"]
[EndTime "1:14:44 PDT"]
[Termination "Dhaydon19 won by resignation"]

1. e4 {[%clk 0:04:57.6]} 1... c5 {[%clk 0:04:57.4]} 2. Nf3 {[%clk 0:04:54.2]}
2... Nc6 {[%clk 0:04:56.4]} 3. d4 {[%clk 0:04:53.3]} 3... cxd4 {[%clk
0:04:55.4]} 4. Nxd4 {[%clk 0:04:53.2]} 4... Nf6 {[%clk 0:04:54.8]} 5. Nc3 {[%clk
0:04:51.7]} 5... d6 {[%clk 0:04:53.6]} 6. f3 {[%clk 0:04:50.7]} 6... g6 {[%clk
0:04:52]} 7. Be3 {[%clk 0:04:49.8]} 7... Bg7 {[%clk 0:04:51.3]} 8. Qd2 {[%clk
0:04:49.4]} 8... O-O {[%clk 0:04:49.8]} 9. O-O-O {[%clk 0:04:49]} 9... h5 {[%clk
0:04:48.7]} 10. h4 {[%clk 0:04:45.6]} 10... Qc7 {[%clk 0:04:46.3]} 11. g4 {[%clk
0:04:44.4]} 11... hxg4 {[%clk 0:04:45]} 12. h5 {[%clk 0:04:40.7]} 12... Nxh5
{[%clk 0:04:41.7]} 13. Nd5 {[%clk 0:04:39.5]} 13... Qd8 {[%clk 0:04:39.2]} 14.
Bh6 {[%clk 0:04:30.1]} 14... Nxd4 {[%clk 0:04:34.5]} 15. Bxg7 {[%clk 0:04:27.1]}
15... Nxg7 {[%clk 0:04:26.9]} 16. Qh6 {[%clk 0:04:03.6]} 16... f6 {[%clk
0:04:24.8]} 17. Bc4 {[%clk 0:03:39.8]} 17... Be6 {[%clk 0:04:12.8]} 18. Rxd4
{[%clk 0:03:28.5]} 18... Kf7 {[%clk 0:04:09.3]} 19. Nf4 {[%clk 0:03:23.2]} 19...
Bxc4 {[%clk 0:03:49.1]} 20. Qxg6+ {[%clk 0:03:21.4]} 20... Kg8 {[%clk
0:03:48.3]} 21. Rh7 {[%clk 0:02:39.1]} 21... Rf7 {[%clk 0:03:38.7]} 22. Rxc4
{[%clk 0:02:28.7]} 22... Qa5 {[%clk 0:03:28.1]} 23. Nd3 {[%clk 0:02:12.6]} 23...
Qg5+ {[%clk 0:03:25.2]} 24. Qxg5 {[%clk 0:02:11.4]} 24... fxg5 {[%clk
0:03:24.9]} 25. Rh1 {[%clk 0:02:05.7]} 25... gxf3 {[%clk 0:03:22.4]} 26. Rg1
{[%clk 0:02:05.1]} 26... Ne6 {[%clk 0:03:21.3]} 27. Nf2 {[%clk 0:02:02.6]} 27...
Raf8 {[%clk 0:03:15.4]} 28. e5 {[%clk 0:01:59.3]} 28... d5 {[%clk 0:03:13.5]}
29. Rcg4 {[%clk 0:01:58]} 29... Rf5 {[%clk 0:03:12.4]} 0-1

[Event "Live Chess"]
[Site "Chess.com"]
[Date "2023.05.21"]
[Round "-"]
[White "KeithArkell"]
[Black "TheSmoulderingMaster"]
[Result "1-0"]
[WhiteElo "2523"]
[BlackElo "1684"]
[TimeControl "300"]
[EndTime "1:15:01 PDT"]
[Termination "KeithArkell won by resignation"]

1. d4 {[%clk 0:04:59.2]} 1... Nf6 {[%clk 0:04:58.9]} 2. Nf3 {[%clk 0:04:57.4]}
2... d6 {[%clk 0:04:57.9]} 3. c4 {[%clk 0:04:56.3]} 3... g6 {[%clk 0:04:57.2]}
4. Nc3 {[%clk 0:04:55.3]} 4... Bg7 {[%clk 0:04:56.3]} 5. g3 {[%clk 0:04:54.9]}
5... O-O {[%clk 0:04:55]} 6. Bg2 {[%clk 0:04:54.2]} 6... Nbd7 {[%clk 0:04:53.8]}
7. d5 {[%clk 0:04:53.1]} 7... Nb6 {[%clk 0:04:46.6]} 8. Qd3 {[%clk 0:04:50.9]}
8... Nbd7 {[%clk 0:04:45.1]} 9. O-O {[%clk 0:04:48.8]} 9... Nc5 {[%clk
0:04:44.2]} 10. Qd1 {[%clk 0:04:47.6]} 10... Bg4 {[%clk 0:04:42.3]} 11. Be3
{[%clk 0:04:46.6]} 11... Nce4 {[%clk 0:04:38.5]} 12. Nxe4 {[%clk 0:04:45.1]}
12... Nxe4 {[%clk 0:04:38.4]} 13. Bd4 {[%clk 0:04:44.2]} 13... e5 {[%clk
0:04:28.8]} 14. dxe6 {[%clk 0:04:42.8]} 14... fxe6 {[%clk 0:04:27.2]} 15. Bxg7
{[%clk 0:04:41.9]} 15... Kxg7 {[%clk 0:04:26.2]} 16. Ne5 {[%clk 0:04:29.7]}
16... Bf5 {[%clk 0:04:08.4]} 17. Nf3 {[%clk 0:04:28.1]} 17... Bg4 {[%clk
0:04:07]} 18. Qd4+ {[%clk 0:04:26.9]} 18... Nf6 {[%clk 0:04:03.7]} 19. Ng5
{[%clk 0:04:19.3]} 19... c5 {[%clk 0:03:55.2]} 20. Qxg4 {[%clk 0:04:15.2]} 20...
Nxg4 {[%clk 0:03:52.7]} 21. Nxe6+ {[%clk 0:04:14.5]} 21... Kh8 {[%clk
0:03:52.2]} 22. Nxd8 {[%clk 0:04:13.8]} 22... Raxd8 {[%clk 0:03:51.4]} 23. h3
{[%clk 0:04:11.2]} 23... Ne5 {[%clk 0:03:49.6]} 24. b3 {[%clk 0:04:10.1]} 24...
Rd7 {[%clk 0:03:44]} 25. Rfd1 {[%clk 0:04:08.5]} 25... Rf6 {[%clk 0:03:38.5]}
26. Rd5 {[%clk 0:04:06.9]} 26... a6 {[%clk 0:03:34.3]} 27. Rad1 {[%clk
0:04:05.5]} 27... Nc6 {[%clk 0:03:27.4]} 28. Rxc5 {[%clk 0:04:01.6]} 28... Nb4
{[%clk 0:03:26.6]} 29. Rc8+ {[%clk 0:03:54.9]} 29... Kg7 {[%clk 0:03:24.8]} 30.
a3 {[%clk 0:03:54.4]} 30... Nc2 {[%clk 0:03:21.1]} 31. Rb8 {[%clk 0:03:46.6]}
31... Nxa3 {[%clk 0:03:17.8]} 32. Rxb7 {[%clk 0:03:44.4]} 32... Rxb7 {[%clk
0:03:14.2]} 33. Bxb7 {[%clk 0:03:43.2]} 33... a5 {[%clk 0:03:14.1]} 34. Ra1
{[%clk 0:03:40]} 34... Nc2 {[%clk 0:03:03.2]} 35. Rxa5 {[%clk 0:03:38.9]} 35...
Nd4 {[%clk 0:03:02.7]} 36. b4 {[%clk 0:03:27]} 36... Nxe2+ {[%clk 0:03:00.9]}
37. Kg2 {[%clk 0:03:26.5]} 37... Nd4 {[%clk 0:02:57.5]} 38. b5 {[%clk
0:03:24.2]} 38... Rf7 {[%clk 0:02:55.5]} 39. Bd5 {[%clk 0:03:23]} 39... Rf8
{[%clk 0:02:50.7]} 40. b6 {[%clk 0:03:21.7]} 40... Rb8 {[%clk 0:02:49.6]} 41. b7
{[%clk 0:03:21.3]} 1-0

[Event "Live Chess"]
[Site "Chess.com"]
[Date "2023.05.21"]
[Round "-"]
[White "JoeyCage"]
[Black "horsechessnut"]
[Result "1-0"]
[WhiteElo "2305"]
[BlackElo "1465"]
[TimeControl "300"]
[EndTime "1:15:05 PDT"]
[Termination "JoeyCage won by resignation"]

1. e3 {[%clk 0:04:56.2]} 1... e5 {[%clk 0:04:58.5]} 2. c4 {[%clk 0:04:53]} 2...
Nf6 {[%clk 0:04:56.1]} 3. d4 {[%clk 0:04:51.4]} 3... e4 {[%clk 0:04:51]} 4. Nc3
{[%clk 0:04:49.5]} 4... c6 {[%clk 0:04:49.2]} 5. c5 {[%clk 0:04:47.8]} 5... d5
{[%clk 0:04:47]} 6. cxd6 {[%clk 0:04:45.9]} 6... Bxd6 {[%clk 0:04:43.5]} 7. Bd2
{[%clk 0:04:41.8]} 7... Nbd7 {[%clk 0:04:41.7]} 8. g3 {[%clk 0:04:38.2]} 8... h6
{[%clk 0:04:38.6]} 9. Bg2 {[%clk 0:04:36.8]} 9... O-O {[%clk 0:04:33]} 10. Nxe4
{[%clk 0:04:33.5]} 10... Nxe4 {[%clk 0:04:26]} 11. Bxe4 {[%clk 0:04:32]} 11...
Nf6 {[%clk 0:04:25.2]} 12. Bg2 {[%clk 0:04:30.7]} 12... Bg4 {[%clk 0:04:21.7]}
13. Ne2 {[%clk 0:04:28.9]} 13... Qb6 {[%clk 0:04:15.7]} 14. Bc3 {[%clk
0:04:24.8]} 14... Nd5 {[%clk 0:04:07]} 15. Qd2 {[%clk 0:04:20]} 15... Nxc3
{[%clk 0:04:01.5]} 16. Nxc3 {[%clk 0:04:18.6]} 16... Rfe8 {[%clk 0:03:52.1]} 17.
O-O {[%clk 0:04:16.2]} 17... Qc7 {[%clk 0:03:44.7]} 18. Ne4 {[%clk 0:04:11.4]}
18... Be7 {[%clk 0:03:40.4]} 19. Rac1 {[%clk 0:04:08.6]} 19... Be6 {[%clk
0:03:35.2]} 20. a3 {[%clk 0:04:03.3]} 20... Bd5 {[%clk 0:03:32.2]} 21. Nc5
{[%clk 0:03:59.9]} 21... Bxg2 {[%clk 0:03:28.3]} 22. Kxg2 {[%clk 0:03:58.6]}
22... Red8 {[%clk 0:03:16.4]} 23. Qe2 {[%clk 0:03:57]} 23... Bf6 {[%clk
0:03:08.4]} 24. Qf3 {[%clk 0:03:54.9]} 24... Qe7 {[%clk 0:03:00.3]} 25. Rc2
{[%clk 0:03:50.7]} 25... Rd5 {[%clk 0:02:56.6]} 26. Ne4 {[%clk 0:03:44]} 26...
Rad8 {[%clk 0:02:45.2]} 27. Nxf6+ {[%clk 0:03:42.4]} 27... Qxf6 {[%clk
0:02:42.8]} 28. Qxf6 {[%clk 0:03:40.8]} 28... gxf6 {[%clk 0:02:41.5]} 29. Rfc1
{[%clk 0:03:40.7]} 29... Re8 {[%clk 0:02:26.9]} 30. Rc5 {[%clk 0:03:38.8]} 30...
Rd7 {[%clk 0:02:25.4]} 31. b4 {[%clk 0:03:35.7]} 31... Rde7 {[%clk 0:02:23.1]}
32. b5 {[%clk 0:03:33.9]} 32... cxb5 {[%clk 0:02:17.8]} 33. Rxb5 {[%clk
0:03:32.7]} 33... Kg7 {[%clk 0:02:08.4]} 34. Rbc5 {[%clk 0:03:26.9]} 34... b6
{[%clk 0:02:07.2]} 35. Rc7 {[%clk 0:03:24.6]} 35... Kf8 {[%clk 0:01:55.7]} 36.
Kf3 {[%clk 0:03:22.2]} 36... Kg7 {[%clk 0:01:53.6]} 37. Rxe7 {[%clk 0:03:18.9]}
37... Rxe7 {[%clk 0:01:52]} 38. Rc6 {[%clk 0:03:18.8]} 38... Kg6 {[%clk
0:01:44.1]} 39. e4 {[%clk 0:03:17.4]} 39... Kg5 {[%clk 0:01:42.1]} 40. h4+
{[%clk 0:03:09.7]} 40... Kh5 {[%clk 0:01:34.8]} 41. Kf4 {[%clk 0:03:07.3]} 41...
Kg6 {[%clk 0:01:28.1]} 42. d5 {[%clk 0:03:04]} 42... Kg7 {[%clk 0:01:25.8]} 43.
f3 {[%clk 0:02:58.1]} 43... Rd7 {[%clk 0:01:24.2]} 44. Ke3 {[%clk 0:02:56]}
44... Re7 {[%clk 0:01:22.3]} 45. Kd4 {[%clk 0:02:54.3]} 45... Rd7 {[%clk
0:01:21.6]} 46. f4 {[%clk 0:02:48.9]} 46... Re7 {[%clk 0:01:11.9]} 47. d6 {[%clk
0:02:47.3]} 47... Rd7 {[%clk 0:01:11]} 48. Kd5 {[%clk 0:02:46.1]} 48... Kf8
{[%clk 0:01:02.5]} 49. Rc8+ {[%clk 0:02:44.2]} 49... Kg7 {[%clk 0:01:01.2]} 50.
Kc6 {[%clk 0:02:42.9]} 1-0

[Event "Live Chess"]
[Site "Chess.com"]
[Date "2023.05.21"]
[Round "-"]
[White "peter-785"]
[Black "raimundklein"]
[Result "0-1"]
[WhiteElo "1195"]
[BlackElo "1741"]
[TimeControl "300"]
[EndTime "1:15:14 PDT"]
[Termination "raimundklein won on time"]

1. e4 {[%clk 0:04:57.5]} 1... c6 {[%clk 0:04:58.9]} 2. Nf3 {[%clk 0:04:56.7]}
2... d5 {[%clk 0:04:57.9]} 3. exd5 {[%clk 0:04:54.6]} 3... cxd5 {[%clk
0:04:57.8]} 4. d4 {[%clk 0:04:53.8]} 4... Bg4 {[%clk 0:04:56.1]} 5. Be2 {[%clk
0:04:52.6]} 5... Nc6 {[%clk 0:04:54.3]} 6. c3 {[%clk 0:04:48.6]} 6... e6 {[%clk
0:04:52.1]} 7. Bg5 {[%clk 0:04:45.4]} 7... Qb6 {[%clk 0:04:49.7]} 8. b3 {[%clk
0:04:33.7]} 8... Nge7 {[%clk 0:04:40.9]} 9. O-O {[%clk 0:04:23.6]} 9... f6
{[%clk 0:04:38.5]} 10. Be3 {[%clk 0:04:11.5]} 10... Nf5 {[%clk 0:04:36.7]} 11.
h3 {[%clk 0:04:05.1]} 11... Nxe3 {[%clk 0:04:28.9]} 12. fxe3 {[%clk 0:04:02.5]}
12... Bh5 {[%clk 0:04:24.5]} 13. Nh2 {[%clk 0:03:55.3]} 13... Bf7 {[%clk
0:04:19.9]} 14. Bh5 {[%clk 0:03:43.5]} 14... g6 {[%clk 0:04:16.1]} 15. Bg4
{[%clk 0:03:42.7]} 15... Be7 {[%clk 0:04:10.8]} 16. Nd2 {[%clk 0:03:30.8]} 16...
O-O {[%clk 0:04:09.2]} 17. e4 {[%clk 0:03:07]} 17... e5 {[%clk 0:03:51.5]} 18.
exd5 {[%clk 0:02:54.6]} 18... Bxd5 {[%clk 0:03:48.4]} 19. Bf3 {[%clk 0:02:53.9]}
19... Bf7 {[%clk 0:03:28.1]} 20. Bxc6 {[%clk 0:02:25]} 20... bxc6 {[%clk
0:03:28]} 21. Kh1 {[%clk 0:01:42.6]} 21... exd4 {[%clk 0:03:12.4]} 22. cxd4
{[%clk 0:01:31]} 22... Qxd4 {[%clk 0:03:09.5]} 23. Ndf3 {[%clk 0:01:26.7]} 23...
Qxd1 {[%clk 0:03:00.6]} 24. Raxd1 {[%clk 0:01:25.2]} 24... Rad8 {[%clk
0:02:58.4]} 25. Rc1 {[%clk 0:01:20.1]} 25... Bd5 {[%clk 0:02:51.4]} 26. Rfe1
{[%clk 0:01:14]} 26... Ba3 {[%clk 0:02:48.2]} 27. Rcd1 {[%clk 0:01:00]} 27...
Rfe8 {[%clk 0:02:44]} 28. Rxe8+ {[%clk 0:00:56.2]} 28... Rxe8 {[%clk 0:02:42.7]}
29. Nd4 {[%clk 0:00:54.8]} 29... Kf7 {[%clk 0:02:39.3]} 30. Nhf3 {[%clk
0:00:47.5]} 30... Re3 {[%clk 0:02:24.7]} 31. Nc2 {[%clk 0:00:36]} 31... Rxf3
{[%clk 0:02:15.8]} 32. gxf3 {[%clk 0:00:32.3]} 32... Bxf3+ {[%clk 0:02:14]} 33.
Kh2 {[%clk 0:00:30.1]} 33... Bxd1 {[%clk 0:02:13.2]} 34. Nxa3 {[%clk 0:00:29.4]}
34... f5 {[%clk 0:02:05.3]} 35. Kg3 {[%clk 0:00:27.9]} 35... g5 {[%clk
0:02:03.2]} 36. h4 {[%clk 0:00:26.2]} 36... h6 {[%clk 0:02:02]} 37. hxg5 {[%clk
0:00:24.8]} 37... hxg5 {[%clk 0:02:01.2]} 38. Nc4 {[%clk 0:00:23.9]} 38... Ke6
{[%clk 0:01:57.8]} 39. Kf2 {[%clk 0:00:18.7]} 39... Bh5 {[%clk 0:01:49.6]} 40.
Nd2 {[%clk 0:00:18]} 40... Kd5 {[%clk 0:01:45.4]} 41. Nc4 {[%clk 0:00:14.4]}
41... Be8 {[%clk 0:01:41.8]} 42. Kg3 {[%clk 0:00:10.2]} 42... c5 {[%clk
0:01:38.4]} 43. Kf2 {[%clk 0:00:08.4]} 43... Bb5 {[%clk 0:01:36.6]} 44. Nd2
{[%clk 0:00:06.3]} 44... a5 {[%clk 0:01:33.4]} 45. Nf3 {[%clk 0:00:04.7]} 45...
g4 {[%clk 0:01:28.7]} 46. Ng5 {[%clk 0:00:04.1]} 46... f4 {[%clk 0:01:21.6]} 0-1

[Event "Live Chess"]
[Site "Chess.com"]
[Date "2023.05.21"]
[Round "-"]
[White "JoshMcK"]
[Black "Denz14"]
[Result "1-0"]
[WhiteElo "1536"]
[BlackElo "1030"]
[TimeControl "300"]
[EndTime "1:15:29 PDT"]
[Termination "JoshMcK won by resignation"]

1. e4 {[%clk 0:04:58.9]} 1... e6 {[%clk 0:04:44.5]} 2. d4 {[%clk 0:04:54.3]}
2... d5 {[%clk 0:04:43.5]} 3. Nc3 {[%clk 0:04:52.8]} 3... Bb4 {[%clk 0:04:41.7]}
4. e5 {[%clk 0:04:50.9]} 4... c5 {[%clk 0:04:38]} 5. a3 {[%clk 0:04:50]} 5...
Bxc3+ {[%clk 0:04:36.8]} 6. bxc3 {[%clk 0:04:49.9]} 6... c4 {[%clk 0:04:33.2]}
7. Qg4 {[%clk 0:04:47.4]} 7... Kf8 {[%clk 0:04:23.7]} 8. h4 {[%clk 0:04:42.7]}
8... h6 {[%clk 0:04:20.6]} 9. h5 {[%clk 0:04:40.5]} 9... f6 {[%clk 0:04:05.9]}
10. Nf3 {[%clk 0:04:33.2]} 10... f5 {[%clk 0:04:03.6]} 11. Qg3 {[%clk
0:04:25.3]} 11... Ne7 {[%clk 0:03:53.9]} 12. Nh4 {[%clk 0:04:19.4]} 12... Qe8
{[%clk 0:03:50]} 13. Be2 {[%clk 0:04:15.7]} 1-0

[Event "Live Chess"]
[Site "Chess.com"]
[Date "2023.05.21"]
[Round "-"]
[White "JuperLuper"]
[Black "Tushinskiy"]
[Result "0-1"]
[WhiteElo "1207"]
[BlackElo "2188"]
[TimeControl "300"]
[EndTime "1:15:40 PDT"]
[Termination "Tushinskiy won by checkmate"]

1. e4 {[%clk 0:04:57.3]} 1... e5 {[%clk 0:04:57.9]} 2. Nc3 {[%clk 0:04:53.7]}
2... d6 {[%clk 0:04:57.2]} 3. Nf3 {[%clk 0:04:49.3]} 3... Bg4 {[%clk 0:04:55.4]}
4. d3 {[%clk 0:04:47.3]} 4... Nd7 {[%clk 0:04:54.3]} 5. Be3 {[%clk 0:04:45.7]}
5... Ngf6 {[%clk 0:04:53.3]} 6. Be2 {[%clk 0:04:44.3]} 6... c6 {[%clk
0:04:52.6]} 7. O-O {[%clk 0:04:41.9]} 7... Be7 {[%clk 0:04:50.3]} 8. h3 {[%clk
0:04:40]} 8... Bh5 {[%clk 0:04:40.4]} 9. Re1 {[%clk 0:04:35.6]} 9... Qc7 {[%clk
0:04:38.3]} 10. a4 {[%clk 0:04:32.2]} 10... O-O {[%clk 0:04:36.9]} 11. d4 {[%clk
0:04:16]} 11... Rfd8 {[%clk 0:04:05.4]} 12. Na2 {[%clk 0:03:51.3]} 12... Nxe4
{[%clk 0:03:56.1]} 13. c3 {[%clk 0:03:48.2]} 13... Nef6 {[%clk 0:03:46.6]} 14.
Qc2 {[%clk 0:03:46.5]} 14... e4 {[%clk 0:03:44.8]} 15. Ng5 {[%clk 0:03:42.4]}
15... Bg6 {[%clk 0:03:43.2]} 16. Rad1 {[%clk 0:03:37.6]} 16... h6 {[%clk
0:03:41]} 17. h4 {[%clk 0:03:26.9]} 17... hxg5 {[%clk 0:03:31.2]} 18. Bxg5
{[%clk 0:03:26.8]} 18... d5 {[%clk 0:03:28.4]} 19. Qd2 {[%clk 0:03:22.1]} 19...
Nf8 {[%clk 0:03:26.7]} 20. h5 {[%clk 0:03:15.8]} 20... Nxh5 {[%clk 0:03:24.1]}
21. Bxh5 {[%clk 0:03:13.3]} 21... Bxh5 {[%clk 0:03:22.5]} 22. Bxe7 {[%clk
0:03:11.1]} 22... Qxe7 {[%clk 0:03:21]} 23. f3 {[%clk 0:03:03.5]} 23... f5
{[%clk 0:03:17.6]} 24. Rc1 {[%clk 0:02:58.3]} 24... Ne6 {[%clk 0:03:14.8]} 25.
fxe4 {[%clk 0:02:56.3]} 25... fxe4 {[%clk 0:03:14.7]} 26. Rf1 {[%clk 0:02:54.9]}
26... Re8 {[%clk 0:03:09.6]} 27. Rce1 {[%clk 0:02:52]} 27... Qh4 {[%clk
0:03:05]} 28. Qe3 {[%clk 0:02:45.6]} 28... Re7 {[%clk 0:03:01.7]} 29. Nb4 {[%clk
0:02:42.8]} 29... Rae8 {[%clk 0:02:59.3]} 30. g3 {[%clk 0:02:27.9]} 30... Qh3
{[%clk 0:02:41.9]} 31. Qf2 {[%clk 0:02:22]} 31... Bf3 {[%clk 0:02:39.5]} 32. Qh2
{[%clk 0:02:14.7]} 32... Qg4 {[%clk 0:02:34.5]} 33. Kf2 {[%clk 0:02:08.7]} 33...
Ng5 {[%clk 0:02:30.8]} 34. Rh1 {[%clk 0:02:00.9]} 34... Bxh1 {[%clk 0:02:28.7]}
35. Rxh1 {[%clk 0:02:00.8]} 35... e3+ {[%clk 0:02:26.7]} 36. Kg2 {[%clk
0:01:58.7]} 36... e2 {[%clk 0:02:20.9]} 37. Qh8+ {[%clk 0:01:56.4]} 37... Kf7
{[%clk 0:02:19.2]} 38. Qh5+ {[%clk 0:01:30.6]} 38... Qxh5 {[%clk 0:02:17.3]} 39.
Rf1+ {[%clk 0:01:30.3]} 39... exf1=Q+ {[%clk 0:02:15.5]} 40. Kxf1 {[%clk
0:01:22.1]} 40... Qe2+ {[%clk 0:02:15.4]} 41. Kg1 {[%clk 0:01:19.7]} 41... Nf3+
{[%clk 0:02:15.3]} 42. Kh1 {[%clk 0:01:09.5]} 42... Qh2# {[%clk 0:02:15.2]} 0-1

[Event "Live Chess"]
[Site "Chess.com"]
[Date "2023.05.21"]
[Round "-"]
[White "Tilbs_12"]
[Black "Singapourfeuj"]
[Result "0-1"]
[WhiteElo "1566"]
[BlackElo "2183"]
[TimeControl "300"]
[EndTime "1:15:55 PDT"]
[Termination "Singapourfeuj won by resignation"]

1. e4 {[%clk 0:04:57.7]} 1... Nc6 {[%clk 0:04:59.1]} 2. Nf3 {[%clk 0:04:55.5]}
2... g6 {[%clk 0:04:57.9]} 3. d4 {[%clk 0:04:54.3]} 3... Bg7 {[%clk 0:04:56.9]}
4. Be3 {[%clk 0:04:47.4]} 4... d6 {[%clk 0:04:55.8]} 5. d5 {[%clk 0:04:45.9]}
5... Ne5 {[%clk 0:04:54.6]} 6. Nc3 {[%clk 0:04:43]} 6... Nxf3+ {[%clk
0:04:51.5]} 7. Qxf3 {[%clk 0:04:41.2]} 7... e5 {[%clk 0:04:50.6]} 8. Qg3 {[%clk
0:04:24.5]} 8... Ne7 {[%clk 0:04:48.4]} 9. f4 {[%clk 0:04:23.2]} 9... exf4
{[%clk 0:04:46.6]} 10. Bxf4 {[%clk 0:04:21.6]} 10... O-O {[%clk 0:04:45.6]} 11.
O-O-O {[%clk 0:04:18]} 11... f5 {[%clk 0:04:43.5]} 12. e5 {[%clk 0:04:13.8]}
12... dxe5 {[%clk 0:04:40.1]} 13. Bxe5 {[%clk 0:04:12.6]} 13... Bxe5 {[%clk
0:04:34.5]} 14. Qxe5 {[%clk 0:04:11.4]} 14... Qd6 {[%clk 0:04:33.7]} 15. Qxd6
{[%clk 0:04:06.8]} 15... cxd6 {[%clk 0:04:32.8]} 16. Bd3 {[%clk 0:03:58.6]}
16... Bd7 {[%clk 0:04:30.7]} 17. h3 {[%clk 0:03:57]} 17... a6 {[%clk 0:04:28.5]}
18. Rhe1 {[%clk 0:03:54.7]} 18... Rfe8 {[%clk 0:04:26.3]} 19. Re2 {[%clk
0:03:51.9]} 19... b5 {[%clk 0:04:25.1]} 20. Rde1 {[%clk 0:03:50.7]} 20... Kf7
{[%clk 0:04:23.8]} 21. a3 {[%clk 0:03:38.7]} 21... Rac8 {[%clk 0:04:21.6]} 22.
Kd2 {[%clk 0:03:31.6]} 22... Rc5 {[%clk 0:04:18.8]} 23. g4 {[%clk 0:03:24.2]}
23... Nxd5 {[%clk 0:04:14.6]} 24. Nxd5 {[%clk 0:03:22.1]} 24... Rxe2+ {[%clk
0:04:12]} 25. Bxe2 {[%clk 0:03:11.2]} 25... Rxd5+ {[%clk 0:04:11]} 26. Kc3
{[%clk 0:03:09.3]} 26... fxg4 {[%clk 0:04:08.4]} 27. Bxg4 {[%clk 0:03:05.7]}
27... Bxg4 {[%clk 0:04:06.9]} 28. hxg4 {[%clk 0:03:04.8]} 28... Re5 {[%clk
0:04:05.8]} 29. Rd1 {[%clk 0:03:00.2]} 29... d5 {[%clk 0:04:03.6]} 30. Kd4
{[%clk 0:02:55.8]} 30... Re4+ {[%clk 0:04:00.6]} 31. Kxd5 {[%clk 0:02:54.6]}
31... Rxg4 {[%clk 0:03:59.5]} 32. b3 {[%clk 0:02:45.5]} 32... h5 {[%clk
0:03:54.9]} 33. c4 {[%clk 0:02:44.3]} 33... bxc4 {[%clk 0:03:53.3]} 34. bxc4
{[%clk 0:02:43.4]} 34... Ke7 {[%clk 0:03:50.1]} 35. Kc5 {[%clk 0:02:38.3]} 35...
h4 {[%clk 0:03:45.1]} 36. Rb1 {[%clk 0:02:13.4]} 36... h3 {[%clk 0:03:42.1]} 37.
Rb8 {[%clk 0:02:12.7]} 37... h2 {[%clk 0:03:36.3]} 38. Rh8 {[%clk 0:02:11.9]}
38... Rg5+ {[%clk 0:03:35.4]} 39. Kb6 {[%clk 0:02:10.1]} 39... Rh5 {[%clk
0:03:34.7]} 0-1